bitfinex/quotes_SOLUSD_20240827
["timestamp","ask_amount","ask_price","bid_price","bid_amount"]
[1724723714705,26.30940453,158.7,158.65,6.3031]
[1724723715203,25.8012,158.7,158.65,6.3031]
[1724723715405,19.5,158.7,158.65,6.3031]
[1724723715698,19.5,158.7,158.66,6.3024]
[1724723715908,6.3005,158.72,158.66,6.3024]
[1724723717081,20.0,158.71,158.66,6.3024]
[1724723720307,20.0,158.71,158.67,1.26031537]
[1724723721404,6.3,158.73,158.68,7.56221523]
[1724723722818,20.0,158.72,158.68,7.56221523]
[1724723723999,0.50820453,158.71,158.67,6.3023]
[1724723724391,26.3004,158.72,158.67,6.3023]
[1724723725787,0.50820453,158.71,158.67,6.3023]
[1724723726089,9.79529869,158.7,158.65,15.757]
[1724723726417,20.50820453,158.69,158.64,15.2159]
[1724723726619,26.80980453,158.69,158.64,15.2159]
[1724723727122,26.3016,158.69,158.64,21.5192]
[1724723729929,20.0,158.69,158.65,6.3031]
[1724723730315,20.0,158.7,158.65,6.3031]
[1724723730634,20.50820453,158.7,158.65,6.3031]
[1724723730804,26.80940453,158.7,158.65,6.3031]
[1724723731204,0.50820453,158.69,158.65,6.3031]
[1724723732232,26.80940453,158.7,158.65,6.3031]
[1724723732950,26.80940453,158.7,158.64,21.5193]
[1724723734050,26.80940453,158.7,158.64,15.2159]
[1724723734051,9.79529869,158.69,158.64,15.2159]
[1724723734248,0.50820453,158.68,158.63,22.0629]
[1724723735839,6.81030453,158.68,158.63,22.0629]
[1724723736033,0.50820453,158.67,158.63,22.0629]
[1724723736236,6.3021,158.68,158.63,22.0629]
[1724723741762,9.79529869,158.69,158.63,22.0629]
[1724723742444,16.09689869,158.69,158.63,22.0629]
[1724723742965,16.60510322,158.69,158.63,22.0629]
[1724723743660,16.09689869,158.69,158.63,22.0629]
[1724723745852,6.3016,158.69,158.63,22.0629]
[1724723751278,6.80980453,158.69,158.63,22.0629]
[1724723752373,6.80980453,158.69,158.64,6.3035]
[1724723752785,6.3016,158.69,158.64,6.3035]
[1724723761187,26.59477502,158.7,158.65,1.26063591]
[1724723761497,40.37122247,158.74,158.68,6.3019]
[1724723761804,20.0,158.73,158.68,6.3019]
[1724723761969,16.09489869,158.74,158.68,6.3019]
[1724723762365,6.2996,158.74,158.69,6.3013]
[1724723762588,6.2992,158.75,158.7,7.5612664]
[1724723762803,6.2988,158.76,158.71,6.3007]
[1724723764088,20.0,158.75,158.71,6.3007]
[1724723764989,20.0,158.75,158.71,7.56074254]
[1724723767079,20.0,158.75,158.71,1.26004254]
[1724723767284,20.0,158.75,158.7,22.054]
[1724723767483,20.0,158.75,158.71,1.26001034]
[1724723768204,0.8215956,158.78,158.72,17.01003276]
[1724723768393,0.8215956,158.78,158.73,6.2999]
[1724723768577,0.8215956,158.78,158.74,1.25979141]
[1724723768907,0.8215956,158.78,158.73,6.2999]
[1724723769107,6.80660453,158.77,158.72,22.0504]
[1724723771103,6.2984,158.77,158.72,22.0504]
[1724723776615,0.8215956,158.78,158.73,6.2997]
[1724723776786,0.8215956,158.78,158.73,7.55961053]
[1724723776787,20.8215956,158.78,158.73,7.55961053]
[1724723776990,20.8215956,158.78,158.73,6.2997]
[1724723779702,21.32980013,158.78,158.72,22.0504]
[1724723780010,16.09409869,158.76,158.71,6.3006]
[1724723780217,0.50820453,158.75,158.71,6.3006]
[1724723781303,16.09409869,158.76,158.71,6.3006]
[1724723781711,0.50820453,158.75,158.71,6.3006]
[1724723781905,0.50820453,158.75,158.7,6.3011]
[1724723782306,16.09409869,158.76,158.7,7.56114372]
[1724723783330,16.09409869,158.76,158.71,6.3007]
[1724723788224,0.50820453,158.75,158.71,6.3007]
[1724723789425,9.79529869,158.74,158.69,22.0548]
[1724723789634,0.50820453,158.73,158.69,22.0548]
[1724723790330,9.79529869,158.74,158.69,22.0548]
[1724723790930,16.09489869,158.74,158.69,22.0548]
[1724723791103,6.80830453,158.73,158.67,6.3023]
[1724723795917,9.79529869,158.72,158.66,22.0596]
[1724723796140,0.50820453,158.71,158.66,22.0596]
[1724723797817,6.80900453,158.71,158.66,22.0596]
[1724723798017,0.50820453,158.7,158.66,22.0596]
[1724723804737,6.3008,158.71,158.66,22.0596]
[1724723804941,6.80900453,158.71,158.66,22.0596]
[1724723806357,0.50820453,158.7,158.66,22.0596]
[1724723807766,6.80900453,158.71,158.66,22.0596]
[1724723807925,6.3008,158.71,158.66,22.0596]
[1724723808122,32.31739869,158.72,158.67,6.3022]
[1724723811058,22.5221,158.72,158.67,6.3022]
[1724723811265,0.50820453,158.71,158.67,6.3022]
[1724723812133,22.5221,158.72,158.67,6.3022]
[1724723812455,0.50820453,158.71,158.67,6.3022]
[1724723814767,6.80820453,158.73,158.67,6.3022]
[1724723814971,20.0,158.72,158.67,6.3022]
[1724723816321,0.50820453,158.73,158.7,6.3008]
[1724723816458,20.0,158.74,158.7,1.26010921]
[1724723816777,20.0,158.75,158.71,22.0514]
[1724723817577,20.0,158.75,158.71,15.751]
[1724723822299,20.0,158.75,158.71,22.0516]
[1724723826619,26.2992,158.75,158.71,15.751]
[1724723826916,26.80740453,158.75,158.71,15.751]
[1724723829902,26.2992,158.75,158.71,15.751]
[1724723830708,26.2992,158.75,158.71,17.01107379]
[1724723830709,20.0,158.75,158.71,17.01107379]
[1724723832585,20.0,158.75,158.72,6.3003]
[1724723833215,26.2985,158.77,158.72,6.3003]
[1724723839607,20.0,158.77,158.73,6.2998]
[1724723839803,7.1196956,158.78,158.73,6.2998]
[1724723840009,7.1196956,158.78,158.74,1.25977694]
[1724723840810,7.1196956,158.78,158.73,7.5595725]
[1724723841013,20.0,158.77,158.73,7.5595725]
[1724723841799,20.0,158.77,158.73,6.2998]
[1724723845318,0.50820453,158.76,158.72,6.3003]
[1724723845825,20.0,158.77,158.72,6.3003]
[1724723846344,20.0,158.77,158.72,7.56018554]
[1724723846539,20.0,158.77,158.72,6.3003]
[1724723850909,20.0,158.77,158.72,7.56018405]
[1724723851112,20.0,158.77,158.72,6.3003]
[1724723852606,20.0,158.77,158.72,7.56018388]
[1724723853817,20.0,158.77,158.72,6.3003]
[1724723856448,26.2987,158.77,158.72,6.3003]
[1724723856740,7.88976217,158.76,158.72,6.3003]
[1724723856953,7.88976217,158.75,158.72,6.3003]
[1724723857120,7.88976217,158.74,158.72,6.3003]
[1724723857322,7.88976217,158.73,158.72,6.3003]
[1724723859848,26.2987,158.77,158.72,6.3003]
[1724723860037,7.88969014,158.76,158.72,6.3003]
[1724723860346,7.88969014,158.75,158.72,6.3003]
[1724723860549,7.88969014,158.74,158.72,6.3003]
[1724723860846,7.88969014,158.73,158.72,6.3003]
[1724723863248,7.88974378,158.73,158.72,6.3003]
[1724723865271,7.88974378,158.73,158.69,6.3012]
[1724723865431,7.88974378,158.72,158.69,6.3012]
[1724723865629,7.88974378,158.71,158.69,6.3012]
[1724723865864,7.88974378,158.7,158.69,6.3012]
[1724723866456,0.50820453,158.73,158.7,6.301]
[1724723866635,7.8907339,158.72,158.7,6.301]
[1724723866835,7.89073824,158.71,158.7,6.301]
[1724723873283,6.80740453,158.75,158.7,6.301]
[1724723873444,7.89052542,158.71,158.7,6.301]
[1724723877176,7.89052535,158.71,158.7,6.301]
[1724723878773,7.89052535,158.71,158.68,15.7548]
[1724723878978,7.89052535,158.7,158.68,15.7548]
[1724723879152,7.89052535,158.69,158.68,15.7548]
[1724723879666,7.89052535,158.69,158.68,22.0567]
[1724723880251,7.89151804,158.69,158.68,22.0567]
[1724723885879,6.3003,158.73,158.68,22.0567]
[1724723886202,7.89168073,158.72,158.68,22.0567]
[1724723886377,7.89168073,158.71,158.68,22.0567]
[1724723886697,7.89168073,158.7,158.68,22.0567]
[1724723887004,7.89168073,158.69,158.68,22.0567]
[1724723890886,7.89168073,158.69,158.64,15.7581]
[1724723891103,8.39988526,158.68,158.64,22.0613]
[1724723891273,7.89168073,158.67,158.64,15.403491]
[1724723891473,7.89168073,158.66,158.64,21.706691]
[1724723891705,7.89168073,158.65,158.64,21.706691]
[1724723893591,7.89168073,158.65,158.64,22.96711758]
[1724723893788,7.89168073,158.65,158.64,66.706691]
[1724723895406,6.3005,158.72,158.67,6.3022]
[1724723895601,20.0,158.71,158.67,6.3022]
[1724723895794,27.89161045,158.71,158.67,7.56249842]
[1724723896000,7.89163594,158.7,158.67,7.56249842]
[1724723896236,7.89163594,158.69,158.67,7.56249842]
[1724723896396,7.89163594,158.68,158.67,7.56249842]
[1724723897937,7.89163594,158.68,158.67,23.31841941]
[1724723898227,7.89161045,158.71,158.67,23.31841941]
[1724723898228,7.89161045,158.71,158.69,6.3013]
[1724723903441,7.89161045,158.71,158.68,6.3019]
[1724723904840,7.89161045,158.71,158.67,22.0582]
[1724723905220,8.40085702,158.7,158.67,15.7559]
[1724723905545,7.89265249,158.69,158.67,15.7559]
[1724723905722,7.89265249,158.68,158.67,15.7559]
[1724723905917,7.89282187,158.68,158.67,15.7559]
[1724723906120,7.89282187,158.68,158.65,6.3031]
[1724723906330,6.3017,158.69,158.64,22.0619]
[1724723906857,7.89292727,158.68,158.64,22.0619]
[1724723907031,7.89292727,158.67,158.64,22.0619]
[1724723907232,7.89292727,158.66,158.64,22.0619]
[1724723907541,7.89292727,158.65,158.64,22.0619]
[1724723912656,6.80950453,158.7,158.64,22.0619]
[1724723912852,7.89289848,158.65,158.64,22.0619]
[1724723916550,7.89289848,158.65,158.62,1.26053191]
[1724723916759,7.89289848,158.64,158.57,32.2139]
[1724723916937,9.79529869,158.67,158.57,32.2139]
[1724723916938,7.89289848,158.63,158.57,32.2139]
[1724723917138,7.89289848,158.62,158.57,15.7654]
[1724723917334,7.89289848,158.61,158.57,15.7654]
[1724723917537,7.89289848,158.6,158.57,15.7654]
[1724723917741,7.89289848,158.59,158.58,6.3059]
[1724723919299,0.50820453,158.64,158.58,6.3059]
[1724723919564,7.89529563,158.63,158.58,6.3059]
[1724723919866,8.40350016,158.62,158.58,6.3059]
[1724723920068,7.89529563,158.61,158.58,6.3059]
[1724723920360,7.89529563,158.6,158.58,6.3059]
[1724723920562,7.89529563,158.59,158.57,15.7654]
[1724723920746,7.89529563,158.58,158.57,15.7654]
[1724723922162,7.89529563,158.58,158.57,22.0717]
[1724723922568,0.50820453,158.62,158.57,22.0717]
[1724723922743,7.89648291,158.58,158.57,22.0717]
[1724723924250,7.89687891,158.58,158.57,22.0717]
[1724723924669,7.89687891,158.58,158.57,22.426309]
[1724723925976,0.50820453,158.6,158.57,22.426309]
[1724723926263,7.89672453,158.59,158.57,22.426309]
[1724723926455,7.89672453,158.58,158.57,22.426309]
[1724723927467,7.89672453,158.58,158.57,0.354609]
[1724723927673,27.89672453,158.58,158.57,0.354609]
[1724723927963,44.21972322,158.58,158.57,0.354609]
[1724723928174,95.52562322,158.58,158.57,0.354609]
[1724723929280,96.03382775,158.58,158.57,0.354609]
[1724723930261,95.52562322,158.58,158.57,0.354609]
[1724723931048,96.03382775,158.58,158.57,0.354609]
[1724723931247,6.3074,158.55,158.49,6.3093]
[1724723931459,9.79529869,158.53,158.44,16.5969]
[1724723931668,9.79529869,158.49,158.43,6.3118]
[1724723931878,8.40492906,158.48,158.43,6.3118]
[1724723932170,7.89672453,158.47,158.4,16.5969]
[1724723932386,0.50820453,158.48,158.4,16.5969]
[1724723932387,7.90300497,158.46,158.4,16.5969]
[1724723932672,0.50820453,158.48,158.4,16.5969]
[1724723932673,7.90399857,158.45,158.4,16.5969]
[1724723932863,7.90399857,158.44,158.39,15.7828]
[1724723933071,7.90399857,158.43,158.39,15.7828]
[1724723933373,0.50820453,158.46,158.4,6.3127]
[1724723933683,7.90518645,158.45,158.4,6.3127]
[1724723933982,8.41339098,158.44,158.4,6.3127]
[1724723934188,7.90518645,158.43,158.41,6.3125]
[1724723934367,9.79529869,158.45,158.41,6.3125]
[1724723934548,7.90525625,158.44,158.41,6.3125]
[1724723934754,9.79529869,158.45,158.41,6.3125]
[1724723934967,7.90520603,158.44,158.41,6.3125]
[1724723935258,20.0,158.46,158.42,7.57456587]
[1724723935578,6.3094,158.5,158.42,7.57456587]
[1724723935579,9.79529869,158.48,158.42,6.3121]
[1724723935754,28.41234794,158.47,158.42,6.3121]
[1724723935955,20.0,158.47,158.42,6.3121]
[1724723937475,20.50820453,158.47,158.42,6.3121]
[1724723937980,7.90493785,158.46,158.42,6.3121]
[1724723938176,9.79529869,158.46,158.42,6.3121]
[1724723938475,9.79529869,158.46,158.41,6.3125]
[1724723938774,9.79529869,158.46,158.42,6.3122]
[1724723940182,20.50820453,158.45,158.36,16.5969]
[1724723940390,20.50820453,158.45,158.38,6.3138]
[1724723940565,9.79529869,158.43,158.38,6.3138]
[1724723940774,0.50820453,158.42,158.38,6.3138]
[1724723941885,9.79529869,158.43,158.38,6.3138]
[1724723942064,9.79529869,158.43,158.39,6.3134]
[1724723942485,0.50820453,158.42,158.39,6.3134]
[1724723942772,9.79529869,158.43,158.39,6.3134]
[1724723943584,9.79529869,158.43,158.37,6.3139]
[1724723943769,20.50820453,158.42,158.37,6.3139]
[1724723943975,20.50820453,158.42,158.38,6.3137]
[1724723943976,9.79529869,158.41,158.38,6.3137]
[1724723945002,30.30350322,158.42,158.38,6.3137]
[1724723947284,30.30350322,158.42,158.35,15.7874]
[1724723947589,0.50820453,158.41,158.36,6.3145]
[1724723947984,0.50820453,158.41,158.37,6.3142]
[1724723949189,30.30350322,158.42,158.39,6.3133]
[1724723949365,20.0,158.42,158.39,6.3133]
[1724723949687,20.0,158.43,158.39,6.3133]
[1724723949991,9.79529869,158.4,158.36,6.3147]
[1724723951195,10.30350322,158.42,158.37,15.7857]
[1724723951375,20.0,158.41,158.37,15.7857]
[1724723951977,20.0,158.41,158.38,6.3138]
[1724723952369,20.0,158.41,158.37,15.7857]
[1724723952370,20.0,158.41,158.37,22.1]
[1724723952582,6.5814673,158.46,158.42,6.3119]
[1724723952789,9.79529869,158.5,158.42,6.3119]
[1724723952994,9.79529869,158.48,158.43,22.0916]
[1724723953299,7.90501876,158.47,158.43,15.7797]
[1724723954396,16.10529869,158.48,158.43,15.7797]
[1724723954890,16.10529869,158.48,158.43,22.0913]
[1724723954891,27.90550333,158.47,158.43,22.0913]
[1724723955092,20.0,158.47,158.43,22.0913]
[1724723957482,20.0,158.47,158.44,6.3114]
[1724723957688,20.0,158.49,158.44,6.3114]
[1724723957988,7.90439119,158.48,158.44,6.3114]
[1724723958192,27.90439119,158.47,158.44,6.3114]
[1724723958377,20.0,158.47,158.44,6.3114]
[1724723958693,20.0,158.49,158.44,6.3114]
[1724723959030,7.9044226,158.48,158.47,31.88139869]
[1724723959176,16.10119869,158.58,158.5,15.7727]
[1724723959514,7.90118357,158.57,158.54,6.3075]
[1724723959672,7.90118357,158.56,158.54,6.3075]
[1724723959882,7.90118357,158.55,158.54,6.3075]
[1724723960073,7.89991606,158.55,158.54,6.3075]
[1724723960370,6.3052,158.6,158.55,6.307]
[1724723960575,7.89973045,158.59,158.55,6.307]
[1724723960803,27.89973045,158.58,158.55,6.307]
[1724723961184,7.89973045,158.57,158.56,7.56816968]
[1724723961496,24.48636831,158.63,158.56,6.3067]
[1724723961677,7.89810119,158.62,158.56,6.3067]
[1724723961887,7.89810119,158.61,158.56,6.3067]
[1724723962078,7.89810119,158.6,158.56,6.3067]
[1724723962390,7.89810119,158.59,158.56,6.3067]
[1724723962587,7.89810119,158.58,158.56,6.3067]
[1724723962820,30.79036831,158.63,158.56,6.3067]
[1724723963028,27.89791651,158.62,158.56,6.3067]
[1724723963320,7.89791651,158.61,158.56,6.3067]
[1724723963526,7.89791651,158.61,158.55,15.7675]
[1724723963527,27.89791651,158.6,158.57,6.3063]
[1724723963709,7.89791651,158.59,158.57,6.3063]
[1724723963912,7.89791651,158.58,158.57,6.3063]
[1724723964126,7.89791651,158.58,158.56,6.3067]
[1724723964298,7.89791651,158.57,158.56,6.3067]
[1724723964520,26.3044,158.62,158.56,6.3067]
[1724723964718,7.89828426,158.61,158.56,6.3067]
[1724723964919,27.89828426,158.6,158.56,6.3067]
[1724723965143,7.89828426,158.59,158.56,6.3067]
[1724723965603,7.89828426,158.58,158.56,6.3067]
[1724723965919,7.89828426,158.57,158.55,15.7675]
[1724723966117,7.89828426,158.56,158.55,15.7675]
[1724723967429,7.89909725,158.56,158.55,15.7675]
[1724723967606,7.89909725,158.59,158.55,15.7675]
[1724723967812,6.57855205,158.64,158.59,6.3054]
[1724723968031,7.89647469,158.63,158.6,1.2609708]
[1724723968237,7.89647469,158.62,158.61,6.3047]
[1724723968529,7.89647469,158.62,158.61,7.56552592]
[1724723968826,7.89647469,158.62,158.61,6.3047]
[1724723969124,6.302,158.68,158.62,6.3043]
[1724723969330,8.40347611,158.67,158.62,6.3043]
[1724723969536,7.89527158,158.66,158.62,6.3043]
[1724723969905,7.89527158,158.66,158.6,22.067]
[1724723970539,20.0,158.65,158.6,22.067]
[1724723970702,7.8954914,158.64,158.6,22.067]
[1724723971016,7.8954914,158.63,158.6,22.067]
[1724723971220,20.0,158.65,158.6,22.067]
[1724723971517,7.89562887,158.64,158.6,22.067]
[1724723971696,7.89562887,158.63,158.6,22.067]
[1724723971901,20.0,158.66,158.6,22.067]
[1724723972134,7.89542265,158.65,158.6,22.067]
[1724723972429,27.89542265,158.64,158.6,22.067]
[1724723972614,7.89542265,158.63,158.6,22.067]
[1724723973001,7.89542265,158.62,158.6,22.067]
[1724723973202,0.50820453,158.65,158.6,22.067]
[1724723973402,7.89621797,158.64,158.6,22.067]
[1724723973598,7.89621797,158.63,158.6,22.067]
[1724723973820,7.89621797,158.62,158.6,22.067]
[1724723974012,0.50820453,158.65,158.6,22.067]
[1724723974232,7.89603005,158.64,158.6,22.067]
[1724723974426,26.303,158.66,158.6,22.067]
[1724723974612,26.303,158.66,158.61,6.3047]
[1724723974613,7.89584198,158.63,158.61,6.3047]
[1724723974807,26.303,158.66,158.6,22.0673]
[1724723975109,7.89605346,158.65,158.6,22.0673]
[1724723975323,27.89605346,158.64,158.6,22.0673]
[1724723975500,7.89605346,158.63,158.6,22.0673]
[1724723975719,26.303,158.66,158.6,22.0673]
[1724723975939,7.89605928,158.65,158.6,22.0673]
[1724723976140,27.89605928,158.64,158.6,22.0673]
[1724723976437,7.89605928,158.63,158.6,22.0673]
[1724723976739,20.0,158.64,158.6,22.0673]
[1724723977030,7.89605764,158.63,158.6,22.0673]
[1724723977363,26.3032,158.65,158.6,22.0673]
[1724723977810,7.89605781,158.64,158.6,22.0673]
[1724723978013,27.89597892,158.63,158.6,22.0673]
[1724723978220,26.3032,158.65,158.6,22.0673]
[1724723978417,14.19981887,158.64,158.6,15.7622]
[1724723978717,27.89621887,158.63,158.6,15.7622]
[1724723978906,20.0,158.63,158.6,15.7622]
[1724723979104,20.0,158.63,158.58,6.3057]
[1724723979332,8.405563,158.62,158.57,6.3063]
[1724723979543,27.89766184,158.61,158.56,15.7661]
[1724723979741,20.0,158.61,158.56,15.7661]
[1724723980108,7.89787998,158.6,158.56,15.7661]
[1724723980337,20.50820453,158.61,158.56,15.7661]
[1724723980541,20.0,158.61,158.56,15.7661]
[1724723980842,20.0,158.61,158.56,22.0728]
[1724723982813,6.3056,158.59,158.55,1.26120924]
[1724723983015,20.0,158.61,158.54,15.9192]
[1724723983222,7.89800586,158.6,158.56,0.35461]
[1724723983429,20.0,158.61,158.56,0.35461]
[1724723983635,7.89812541,158.6,158.56,0.35461]
[1724723983816,26.3048,158.61,158.56,0.35461]
[1724723984152,7.89820508,158.6,158.56,0.35461]
[1724723984437,26.3048,158.61,158.56,0.35461]
[1724723984841,7.89812451,158.6,158.56,0.35461]
[1724723985044,20.0,158.61,158.56,0.35461]
[1724723985228,14.20356804,158.6,158.56,0.35461]
[1724723985421,6.3052,158.6,158.56,0.35461]
[1724723985622,20.0,158.59,158.56,0.35461]
[1724723987147,20.0,158.59,158.56,6.66121]
[1724723987354,6.3048,158.61,158.56,6.66121]
[1724723987355,20.0,158.6,158.56,6.66121]
[1724723987828,26.3048,158.61,158.56,6.66121]
[1724723988027,7.89800945,158.6,158.56,6.66121]
[1724723988223,20.0,158.59,158.56,6.66121]
[1724723988820,20.0,158.6,158.56,6.66121]
[1724723989415,7.89809841,158.59,158.56,6.66121]
[1724723989616,20.0,158.6,158.56,6.66121]
[1724723989844,7.89810005,158.59,158.56,0.35461]
[1724723990049,26.3055,158.6,158.56,0.35461]
[1724723990251,7.89810022,158.59,158.56,0.35461]
[1724723990451,20.0,158.6,158.56,0.35461]
[1724723990750,7.89804648,158.59,158.56,0.35461]
[1724723990925,26.3048,158.61,158.56,0.35461]
[1724723991249,7.89804631,158.6,158.56,0.35461]
[1724723991418,27.89804631,158.59,158.56,0.35461]
[1724723991736,26.3048,158.61,158.56,0.35461]
[1724723991913,7.89804304,158.6,158.56,0.35461]
[1724723992112,27.89804304,158.59,158.56,0.35461]
[1724723992428,7.89804631,158.58,158.56,0.35461]
[1724723992625,26.3048,158.61,158.56,0.35461]
[1724723992832,7.89804795,158.6,158.56,0.35461]
[1724723993039,27.89804795,158.59,158.56,0.35461]
[1724723993236,7.89804795,158.58,158.56,0.35461]
[1724723993562,26.3048,158.61,158.56,0.35461]
[1724723994159,7.89804304,158.6,158.56,0.35461]
[1724723994453,26.3048,158.61,158.56,0.35461]
[1724723994454,27.89804304,158.59,158.56,0.35461]
[1724723994628,7.89804304,158.58,158.56,0.35461]
[1724723994829,7.89804304,158.57,158.56,0.35461]
[1724723995124,7.89804304,158.6,158.56,0.35461]
[1724723995324,7.89804304,158.57,158.56,0.35461]
[1724723995529,7.89804304,158.58,158.56,0.35461]
[1724723995725,7.89804304,158.57,158.56,0.35461]
[1724724001462,7.89804304,158.57,158.52,6.3083]
[1724724001662,7.89804304,158.56,158.52,6.3083]
[1724724001965,7.89804304,158.55,158.53,6.3079]
[1724724002153,7.89804304,158.54,158.53,6.3079]
[1724724002464,20.0,158.56,158.53,6.3079]
[1724724002668,6.3061,158.58,158.53,6.3079]
[1724724002669,20.0,158.57,158.53,6.3079]
[1724724006268,0.50820453,158.56,158.51,6.3083]
[1724724006439,6.81490453,158.56,158.51,6.3083]
[1724724006763,20.0,158.55,158.51,6.3083]
[1724724006946,0.50820453,158.54,158.5,15.7728]
[1724724007151,16.61295839,158.54,158.5,15.7728]
[1724724007344,20.0,158.53,158.48,6.3099]
[1724724007667,0.50820453,158.52,158.48,6.3099]
[1724724007886,26.81610453,158.53,158.48,6.3099]
[1724724012381,20.0,158.53,158.47,15.7756]
[1724724012682,6.3084,158.52,158.47,22.0857]
[1724724012890,26.308,158.53,158.47,22.0857]
[1724724013671,26.308,158.53,158.48,6.3098]
[1724724018900,20.0,158.53,158.49,6.3094]
[1724724019095,20.0,158.53,158.49,7.57124355]
[1724724019423,20.0,158.52,158.49,7.57124355]
[1724724019567,20.0,158.55,158.49,7.57124355]
[1724724020688,6.3077,158.54,158.49,7.57124355]
[1724724020894,20.0,158.53,158.49,6.3094]
[1724724023005,20.0,158.53,158.5,17.03454646]
[1724724023306,20.0,158.56,158.52,6.3079]
[1724724023486,6.306,158.58,158.52,7.56936866]
[1724724024420,6.3064,158.57,158.52,7.56936866]
[1724724025313,20.0,158.56,158.52,7.56936866]
[1724724026117,20.0,158.56,158.52,6.3079]
[1724724027314,20.0,158.56,158.52,7.56937502]
[1724724028509,20.0,158.56,158.52,6.3079]
[1724724028814,20.0,158.56,158.52,7.56937547]
[1724724029315,6.3055,158.6,158.54,6.3072]
[1724724029612,6.3055,158.6,158.54,7.56854003]
[1724724029793,6.3056,158.59,158.54,7.56854003]
[1724724029982,6.3056,158.59,158.53,22.0775]
[1724724029983,6.3061,158.58,158.53,22.0775]
[1724724030187,0.50820453,158.57,158.53,15.7696]
[1724724030606,6.81460453,158.57,158.52,15.8182]
[1724724031203,6.3064,158.57,158.52,15.8182]
[1724724031714,0.50820453,158.56,158.52,22.1264]
[1724724031896,6.3073,158.55,158.5,15.7728]
[1724724032087,6.3073,158.55,158.5,22.0818]
[1724724032490,0.50820453,158.54,158.48,15.8182]
[1724724032701,9.79715386,158.53,158.46,21.9723]
[1724724033010,20.50820453,158.52,158.46,21.9723]
[1724724033315,0.50820453,158.51,158.44,15.8182]
[1724724033484,6.81690453,158.51,158.45,6.3111]
[1724724034584,6.81690453,158.51,158.46,6.3107]
[1724724035122,0.50820453,158.51,158.46,6.3107]
[1724724035415,0.50820453,158.51,158.45,15.7776]
[1724724035623,6.3096,158.49,158.44,15.8182]
[1724724035801,6.3096,158.49,158.42,22.75325386]
[1724724035802,0.50820453,158.48,158.42,6.6442]
[1724724036219,26.81820453,158.48,158.41,15.7811]
[1724724036519,20.0,158.48,158.43,6.3115]
[1724724036827,20.0,158.49,158.43,7.57355877]
[1724724037202,20.0,158.49,158.44,6.3113]
[1724724041397,0.50820453,158.48,158.44,6.3113]
[1724724041641,26.81780453,158.49,158.44,6.3113]
[1724724041929,26.3096,158.49,158.44,6.3113]
[1724724042113,26.81780453,158.49,158.44,6.3113]
[1724724042338,26.3096,158.49,158.44,6.3113]
[1724724042631,26.81780453,158.49,158.44,6.3113]
[1724724049450,26.3096,158.49,158.44,6.3113]
[1724724050816,26.81780453,158.49,158.44,6.3113]
[1724724051934,6.3099,158.48,158.43,6.3118]
[1724724052117,0.50820453,158.47,158.43,6.3118]
[1724724052715,6.3099,158.48,158.43,6.3118]
[1724724053446,6.81810453,158.48,158.43,6.3118]
[1724724054462,16.61525839,158.48,158.43,6.3118]
[1724724060368,16.10705386,158.48,158.43,6.3118]
[1724724060752,20.0,158.49,158.44,6.3114]
[1724724061779,26.3095,158.49,158.44,6.3114]
[1724724065344,26.81770453,158.49,158.44,6.3114]
[1724724066480,26.81770453,158.49,158.41,25.57825386]
[1724724066481,36.10665386,158.49,158.43,6.3118]
[1724724066646,9.79715386,158.47,158.41,15.7811]
[1724724066845,20.50820453,158.46,158.39,6.3134]
[1724724067055,9.79715386,158.45,158.39,6.3134]
[1724724067370,26.82000453,158.44,158.38,22.0983]
[1724724067563,9.79715386,158.43,158.38,22.0983]
[1724724068089,32.365,158.44,158.39,6.3135]
[1724724068742,32.87320453,158.44,158.39,6.3135]
[1724724069664,32.365,158.44,158.39,6.3135]
[1724724071256,32.365,158.44,158.4,1.26262496]
[1724724071257,20.0,158.44,158.4,1.26262496]
[1724724071587,20.0,158.44,158.4,7.57552496]